bitfinex-derivatives/quotes_ETHF0:USTF0_20250504
["timestamp","ask_amount","ask_price","bid_price","bid_amount"]
[1746369859522,14.31799768,1830.8,1830.7,4.31142]
[1746369860826,15.41035768,1830.8,1830.7,4.31142]
[1746369863230,14.31799768,1830.8,1830.7,4.31142]
[1746369863621,15.41035768,1830.8,1830.7,4.31142]
[1746369865533,15.41035768,1830.8,1830.7,2.4254]
[1746369865734,17.07015768,1830.8,1830.7,2.4254]
[1746369870733,17.07015768,1830.8,1830.7,1.62]
[1746369870935,17.92735768,1830.8,1830.7,1.62]
[1746369874733,17.07015768,1830.8,1830.7,1.62]
[1746369875131,15.41035768,1830.8,1830.7,2.71242]
[1746369875735,15.41035768,1830.8,1830.7,1.62]
[1746369876744,3.688,1830.8,1830.7,5.92022]
[1746369877038,3.688,1830.8,1830.7,10.92022]
[1746369877335,1.09233,1830.9,1830.7,9.8278]
[1746369877542,1.09233,1830.9,1830.8,5.869]
[1746369878538,1.09233,1830.9,1830.8,6.96136]
[1746369879538,2.71517,1831.0,1830.8,6.96136]
[1746369879738,2.71517,1831.0,1830.9,2.5004]
[1746369880337,6.40317,1831.0,1830.9,2.5004]
[1746369881540,6.40317,1831.0,1830.9,3.5927]
[1746369881837,5.3109,1831.0,1830.9,3.5927]
[1746369882742,13.82533768,1831.0,1830.9,3.5927]
[1746369888543,1.0923,1830.9,1830.8,4.2985]
[1746369888744,10.17529768,1830.9,1830.8,6.8217]
[1746369889044,2.7531,1830.9,1830.8,6.8217]
[1746369889243,6.4411,1830.9,1830.8,6.8217]
[1746369889844,6.4411,1830.9,1830.8,7.91406]
[1746369890445,5.3488,1830.9,1830.8,7.91406]
[1746369890643,3.688,1830.9,1830.8,7.91406]
[1746369892145,1.09224,1831.0,1830.8,7.91406]
[1746369892344,8.51443768,1831.0,1830.9,1.6735]
[1746369893148,12.20243768,1831.0,1830.9,1.6735]
[1746369893343,13.83243768,1831.0,1830.9,1.6735]
[1746369894647,13.83243768,1831.0,1830.9,2.7658]
[1746369900152,13.83243768,1831.0,1830.9,1.6735]
[1746369900657,13.83243768,1831.0,1830.9,2.7658]
[1746369902055,12.74019768,1831.0,1830.9,2.7658]
[1746369903958,13.83243768,1831.0,1830.9,2.7658]
[1746369904660,12.20243768,1831.0,1830.9,2.7658]
[1746369905766,13.92643768,1831.0,1830.9,2.7658]
[1746369906467,13.92643768,1831.0,1830.9,1.6735]
[1746369907174,13.92643768,1831.0,1830.9,2.7658]
[1746369911177,13.92643768,1831.0,1830.9,1.6735]
[1746369911774,13.92643768,1831.0,1830.9,2.7658]
[1746369917287,11.11019768,1831.0,1830.9,2.7658]
[1746369917478,3.688,1831.0,1830.9,2.7658]
[1746369918283,3.64088783,1831.1,1831.0,1.09224]
[1746369918587,3.64088783,1831.1,1831.0,2.79754]
[1746369918782,11.06308551,1831.1,1831.0,2.79754]
[1746369919187,14.75108551,1831.1,1831.0,2.79754]
[1746369920289,11.11019768,1831.1,1831.0,2.79754]
[1746369924290,11.11019768,1831.1,1831.0,6.00534]
[1746369925090,11.11019768,1831.1,1831.0,9.49334]
[1746369929099,11.11019768,1831.1,1831.0,6.28554]
[1746369929394,11.11019768,1831.1,1831.0,9.49334]
[1746369936198,12.71799768,1831.1,1831.0,9.49334]
[1746369937400,3.688,1831.1,1831.0,9.49334]
[1746369938199,9.62688783,1831.2,1831.1,1.09218]
[1746369938401,9.62688783,1831.2,1831.1,4.32958]
[1746369938700,17.04908551,1831.2,1831.1,4.32958]
[1746369939093,11.06308551,1831.2,1831.1,4.32958]
[1746369939300,14.75108551,1831.2,1831.1,4.32958]
[1746369939902,11.11019768,1831.2,1831.1,4.32958]
[1746369940799,3.688,1831.2,1831.1,4.32958]
[1746369945309,11.27548783,1831.5,1831.4,1.092]
[1746369945698,9.62688783,1831.5,1831.4,1.092]
[1746369945899,3.64088783,1831.5,1831.4,4.3857]
[1746369949405,1.5948,1831.7,1831.6,1.09188]
[1746369949802,1.09188,1831.6,1831.5,2.67344]
[1746369950097,9.11159768,1831.6,1831.4,1.9366]
[1746369950301,10.10894768,1831.5,1831.3,9.36632]
[1746369950502,9.01699768,1831.4,1831.3,9.36632]
[1746369950702,9.86489768,1831.4,1831.3,6.15852]
[1746369951101,13.55289768,1831.4,1831.3,6.15852]
[1746369952503,12.70499768,1831.4,1831.3,6.15852]
[1746369952708,11.11019768,1831.4,1831.3,9.36632]
[1746369955513,3.688,1831.4,1831.3,9.36632]
[1746369956112,0.00501229,1831.5,1831.4,1.092]
[1746369956312,0.00501229,1831.5,1831.4,4.477]
[1746369958214,3.69301229,1831.5,1831.4,4.477]
[1746369959114,0.00501229,1831.5,1831.4,4.477]
[1746369960912,0.00501229,1831.5,1831.4,9.477]
[1746369961119,4.73253783,1832.0,1831.8,1.0917]
[1746369961326,1.0917,1831.9,1831.8,3.485]
[1746369961524,11.73129768,1831.9,1831.8,3.485]
[1746369962122,15.41929768,1831.9,1831.8,3.485]
[1746369963431,18.62709768,1831.9,1831.8,3.485]
[1746369963621,23.62709768,1831.9,1831.8,3.485]
[1746369963820,1.09188,1831.6,1831.5,4.57694]
[1746369964027,7.42219768,1831.6,1831.5,4.57694]
[1746369964227,11.11019768,1831.6,1831.5,4.57694]
[1746369964527,13.63159768,1831.6,1831.5,4.57694]
[1746369964822,14.41999768,1831.6,1831.5,4.57694]
[1746369965123,14.41999768,1831.6,1831.0,10.32893426]
[1746369965124,2.72986,1831.5,1831.0,7.1795772]
[1746369965327,8.51437768,1831.1,1831.0,7.1795772]
[1746369966227,14.72377768,1831.1,1831.0,7.1795772]
[1746369966416,14.72377768,1831.1,1830.9,24.15959239]
[1746369966620,9.14379768,1831.0,1830.9,24.15959239]
[1746369967130,12.83179768,1831.0,1830.9,24.15959239]
[1746369968931,12.83179768,1831.0,1830.9,6.1652]
[1746369969128,13.92403768,1831.0,1830.9,5.0729]
[1746369969329,12.83179768,1831.0,1830.9,5.0729]
[1746369969530,12.83179768,1831.0,1830.9,6.1652]
[1746369969831,12.83179768,1831.0,1830.9,5.0729]
[1746369970232,12.83179768,1831.0,1830.9,6.1652]
[1746369970729,11.11019768,1831.0,1830.9,6.1652]
[1746369971130,0.7998,1831.1,1830.9,6.1652]
[1746369971434,0.7998,1831.1,1831.0,1.5852]
[1746369971630,9.31417768,1831.1,1831.0,1.5852]
[1746369972134,13.00217768,1831.1,1831.0,1.5852]
[1746369972334,14.64497768,1831.1,1831.0,1.5852]
[1746369973435,14.64497768,1831.1,1831.0,2.67744]
[1746369973634,13.55279768,1831.1,1831.0,1.5852]
[1746369974037,13.55279768,1831.1,1831.0,2.67744]
[1746369975337,11.11019768,1831.1,1831.0,2.67744]
[1746369975531,3.688,1831.1,1831.0,2.67744]
[1746369975833,3.688,1831.1,1831.0,5.88524]
[1746369976224,1.09212,1831.2,1831.1,1.09217]
[1746369976429,10.17911768,1831.2,1831.1,3.53607]
[1746369976734,2.75692,1831.2,1831.1,3.53607]
[1746369977235,6.44492,1831.2,1831.1,3.53607]
[1746369977833,6.44492,1831.2,1831.1,4.33037]
[1746369978539,5.3528,1831.2,1831.1,4.33037]
[1746369978839,3.688,1831.2,1831.1,4.33037]
[1746369979238,1.09208,1831.3,1831.1,3.2382]
[1746369979535,1.09208,1831.3,1831.2,1.7336]
[1746369979740,8.51427768,1831.3,1831.2,2.82572]
[1746369980128,12.20227768,1831.3,1831.2,1.7336]
[1746369980330,13.80497768,1831.3,1831.2,1.7336]
[1746369983237,1.09212,1831.2,1831.1,2.68945]
[1746369983434,10.22261768,1831.2,1831.1,1.88645]
[1746369983834,9.13049768,1831.2,1830.9,5.36348]
[1746369984039,1.0923,1830.9,1830.8,3.2078]
[1746369984244,8.51449768,1830.9,1830.8,3.2078]
[1746369985131,12.20249768,1830.9,1830.8,3.2078]
[1746369985533,11.11019768,1830.9,1830.8,4.30016]
[1746369985827,11.11019768,1830.9,1830.8,6.01566]
[1746369986030,12.68739768,1830.9,1830.8,6.01566]
[1746369986540,11.11019768,1830.9,1830.8,6.01566]
[1746369986839,3.688,1830.9,1830.8,6.01566]
[1746369988240,1.09224,1831.0,1830.9,1.09229]
[1746369988537,8.51443768,1831.0,1830.9,3.59389]
[1746369988741,1.09224,1831.0,1830.9,5.9846]
[1746369989039,1.09224,1831.0,1830.9,7.0769]
[1746369989343,4.78024,1831.0,1830.9,5.9846]
[1746369989537,12.20243768,1831.0,1830.9,5.9846]
[1746369990839,12.20243768,1831.0,1830.9,7.0769]
[1746369991028,12.20243768,1831.0,1830.9,5.9846]
[1746369992840,12.20243768,1831.0,1830.9,7.0769]
[1746369994640,11.11019768,1831.0,1830.9,7.0769]
[1746369995735,3.688,1831.0,1830.9,7.0769]
[1746369996339,1.09216,1831.2,1831.0,1.0922]
[1746369996639,1.09216,1831.2,1831.1,2.5039]
[1746369996834,8.51435768,1831.2,1831.1,3.59608]
[1746369997139,12.20235768,1831.2,1831.1,3.59608]
[1746369997443,12.20235768,1831.2,1831.1,2.5039]
[1746369997840,12.20235768,1831.2,1831.1,3.59608]
[1746369998342,12.20235768,1831.2,1831.1,2.5039]
[1746369998833,1.09218,1831.1,1831.0,1.0922]
[1746369999033,2.80718,1831.1,1831.0,1.0922]
[1746369999240,10.22937768,1831.1,1831.0,2.7605]
[1746369999537,10.22937768,1831.1,1831.0,1.6683]
[1746369999737,1.09224,1831.0,1830.9,5.1632]
[1746370000040,10.22943768,1831.0,1830.9,3.483]
[1746370001144,13.91743768,1831.0,1830.9,3.483]
[1746370002443,17.12523768,1831.0,1830.9,3.483]
[1746370009048,13.91743768,1831.0,1830.9,3.483]
[1746370009242,13.91743768,1831.0,1830.9,5.1218]
[1746370012339,3.688,1831.0,1830.9,6.2141]
[1746370013148,1.09224,1831.0,1830.9,6.2141]
[1746370013651,1.09224,1831.0,1830.9,5.1218]
[1746370021042,8.51443768,1831.0,1830.9,5.1218]
[1746370021242,1.09236,1830.8,1830.7,1.6602]
[1746370021451,8.51455768,1830.8,1830.7,0.8088]
[1746370021848,11.05385768,1830.8,1830.7,0.8088]
[1746370022154,14.74185768,1830.8,1830.7,0.8088]
[1746370023755,1.09242,1830.7,1830.6,1.621]
[1746370023958,10.21431768,1830.7,1830.6,1.621]
[1746370024156,13.90231768,1830.7,1830.6,1.621]
[1746370027165,1.09254,1830.5,1830.4,3.483]
[1746370027359,8.51473768,1830.5,1830.4,1.6976]
[1746370027763,10.16823768,1830.5,1830.4,1.6976]
[1746370028263,13.85623768,1830.5,1830.4,1.6976]
[1746370028465,12.20273768,1830.5,1830.4,1.6976]
[1746370028765,3.688,1830.5,1830.4,2.7902]
[1746370029264,1.09254,1830.5,1830.4,2.7902]
[1746370031259,8.51473768,1830.5,1830.4,1.6976]
[1746370031463,1.0926,1830.4,1830.3,3.2078]
[1746370031666,10.87879768,1830.4,1830.3,3.2078]
[1746370032162,14.56679768,1830.4,1830.3,3.2078]
[1746370033264,14.56679768,1830.4,1830.3,4.8814]
[1746370037067,12.20279768,1830.4,1830.3,4.8814]
[1746370037465,12.20279768,1830.4,1830.3,1.6736]
[1746370037664,13.88409768,1830.4,1830.3,1.6736]
[1746370039771,1.09266,1830.3,1830.2,4.2812]
[1746370039975,10.19615768,1830.3,1830.2,4.2812]
[1746370040272,13.88415768,1830.3,1830.2,3.483]
[1746370040871,1.09272,1830.2,1830.1,3.2078]
[1746370041067,11.02861768,1830.2,1830.1,3.2078]
[1746370041969,1.09278,1830.1,1830.0,1.6487]
[1746370042171,1.09284,1830.0,1829.9,3.483]
[1746370042371,8.51503768,1830.0,1829.9,3.483]
[1746370042565,10.18533768,1830.0,1829.9,3.483]
[1746370043074,1.0929,1829.9,1829.8,4.8565]
[1746370043276,11.02879768,1829.9,1829.8,4.8565]
[1746370044076,14.71679768,1829.9,1829.8,4.8565]
[1746370045168,1.09296,1829.8,1829.7,8.93723358]
[1746370045369,10.22785768,1829.8,1829.7,10.66183358]
[1746370046082,18.91585768,1829.8,1829.7,7.25593358]
[1746370046374,1.09302,1829.7,1829.6,10.88390037]
[1746370046576,13.41861768,1829.7,1829.6,10.88390037]
[1746370047170,17.10661768,1829.7,1829.6,10.88390037]
[1746370049376,17.10661768,1829.7,1829.6,13.42720037]
[1746370049377,4.78102,1829.7,1829.6,13.42720037]
[1746370049677,4.78102,1829.7,1829.6,2.5433]
[1746370051578,12.20321768,1829.7,1829.6,1.7377]
[1746370052766,14.57941768,1829.7,1829.6,1.7377]
[1746370054274,1.09308,1829.6,1829.5,0.7983]
[1746370054480,12.21509768,1829.6,1829.4,5.1343]
[1746370054778,8.51533768,1829.5,1829.4,5.1343]
[1746370055073,10.10043768,1829.5,1829.4,5.1343]
[1746370055880,10.10043768,1829.5,1829.4,3.484]
[1746370056073,1.09319,1829.4,1829.3,3.3101]
[1746370056372,10.24388768,1829.4,1829.3,3.3101]
[1746370057077,13.93188768,1829.4,1829.3,2.5257]
[1746370058576,12.20338768,1829.4,1829.3,2.5257]
[1746370059279,11.11019768,1829.4,1829.3,3.61895]
[1746370059978,12.20338768,1829.4,1829.3,3.61895]
[1746370060176,8.51538768,1829.4,1829.3,3.61895]
[1746370065083,7.42219768,1829.4,1829.3,3.61895]
[1746370066180,3.2078,1829.6,1829.3,2.5257]
[1746370066382,4.30092,1829.6,1829.4,2.81194]
[1746370066575,4.30092,1829.6,1829.5,2.81194]
[1746370066981,4.30092,1829.6,1829.5,1.7188]
[1746370067483,4.30092,1829.6,1829.5,2.521]
[1746370067684,1.09312,1829.6,1829.5,2.521]
[1746370070189,4.78112,1829.6,1829.5,2.521]
[1746370072490,3.688,1829.6,1829.5,3.61414]
[1746370072686,3.688,1829.6,1829.5,6.82194]
[1746370073190,1.09308,1829.6,1829.5,3.61414]
[1746370074788,8.51527768,1829.6,1829.5,2.521]
[1746370075194,12.20327768,1829.6,1829.5,1.7188]
[1746370075386,12.20327768,1829.6,1829.4,3.484]
[1746370075387,1.09314,1829.5,1829.4,3.484]
[1746370075688,10.17023768,1829.5,1829.4,5.2207]
[1746370076395,10.17023768,1829.5,1829.4,6.0684]
[1746370076786,10.17023768,1829.5,1829.4,2.5844]
[1746370077287,13.85823768,1829.5,1829.4,2.5844]
[1746370077993,12.20333768,1829.5,1829.4,3.67759]
[1746370078195,8.51533768,1829.5,1829.4,3.67759]
[1746370078393,7.42219768,1829.5,1829.4,3.67759]
[1746370078587,8.51533768,1829.5,1829.4,3.67759]
[1746370079993,7.42219768,1829.5,1829.4,3.67759]
[1746370080394,8.51533768,1829.5,1829.4,3.67759]
[1746370080692,6.8958,1829.8,1829.4,6.0684]
[1746370080896,7.42219768,1829.7,1829.6,1.09303]
[1746370081093,7.42219768,1829.7,1829.6,1.87623]
[1746370081296,1.09302,1829.7,1829.6,1.87623]
[1746370082493,3.2078,1829.8,1829.6,1.87623]
[1746370082494,4.30079,1829.8,1829.7,1.09302]
[1746370082687,7.42219768,1829.7,1829.6,1.87624]
[1746370083303,5.986,1829.9,1829.8,1.09296]
[1746370083486,4.73376783,1830.0,1829.8,4.30076]
[1746370083692,4.73376783,1830.0,1829.9,1.9571]
[1746370083693,11.06308551,1830.0,1829.9,1.9571]
[1746370083890,3.64088783,1830.0,1829.9,1.9571]
[1746370084086,1.09283,1830.1,1829.9,1.9571]
[1746370084292,10.71963783,1830.2,1829.9,0.8642]
[1746370084500,18.14183551,1830.2,1830.0,1.09284]
[1746370084792,17.04908551,1830.2,1830.1,1.09278]
[1746370084994,9.62688783,1830.2,1830.1,1.09278]
[1746370086392,3.64088783,1830.2,1830.1,1.09278]
[1746370088701,2.82383,1830.4,1830.2,1.0927]
[1746370088997,7.42219768,1830.3,1830.2,1.0927]
[1746370089600,8.51485768,1830.3,1830.2,1.0927]
[1746370089998,7.42219768,1830.3,1830.2,1.0927]
[1746370090795,8.51485768,1830.3,1830.2,1.0927]
[1746370091799,7.42219768,1830.3,1830.2,1.0927]
[1746370096000,7.42219768,1830.3,1830.2,4.3005]
[1746370097302,7.42219768,1830.3,1830.2,5.1637]
[1746370097501,7.42219768,1830.3,1830.2,6.0072]
[1746370097703,2.82384,1830.4,1830.3,1.09266]
[1746370097904,2.82384,1830.4,1830.3,2.76906]
[1746370098103,10.24603768,1830.4,1830.3,2.76906]
[1746370098303,13.93403768,1830.4,1830.3,2.76906]
[1746370098504,13.93403768,1830.4,1830.3,1.6764]
[1746370100106,13.93403768,1830.4,1830.3,2.76906]
[1746370102103,13.93403768,1830.4,1830.3,1.6764]
[1746370102606,13.93403768,1830.4,1830.3,2.76906]
[1746370102905,13.93403768,1830.4,1830.3,1.6764]
[1746370103505,13.93403768,1830.4,1830.3,2.76906]
[1746370105006,13.93403768,1830.4,1830.3,1.6764]
[1746370106794,13.93403768,1830.4,1830.3,2.76906]
[1746370107703,11.11019768,1830.4,1830.3,2.76906]
[1746370107902,3.688,1830.4,1830.3,6.25206]
[1746370108102,5.986,1830.6,1830.5,1.09254]
[1746370108598,5.986,1830.6,1830.5,4.47344]
[1746370109407,1.5993,1830.7,1830.6,1.09248]
[1746370109609,4.30014,1830.9,1830.7,1.09242]
[1746370109911,7.42219768,1830.8,1830.7,1.09242]
[1746370110109,7.42219768,1830.8,1830.7,2.82852]
[1746370110410,6.1079,1830.9,1830.8,1.09236]
[1746370110708,14.62239768,1830.9,1830.8,1.638]
[1746370111207,14.62239768,1830.9,1830.8,2.73036]
[1746370111409,3.688,1830.9,1830.8,2.73036]
[1746370111613,3.688,1830.9,1830.8,3.58826]
[1746370111805,3.688,1830.9,1830.8,4.38126]
[1746370112205,3.67917,1831.0,1830.8,4.38126]
[1746370112411,7.42219768,1830.9,1830.8,4.38126]
[1746370112809,3.67917,1831.0,1830.9,1.0923]
[1746370113006,3.67917,1831.0,1830.9,2.7303]
[1746370113209,11.10136768,1831.0,1830.9,2.7303]
[1746370113609,11.10136768,1831.0,1830.9,1.638]
[1746370114110,11.10136768,1831.0,1830.9,2.7303]
[1746370114512,10.00909768,1831.0,1830.9,2.7303]
[1746370115014,11.10133768,1831.0,1830.9,2.7303]
[1746370116209,9.14199768,1831.0,1830.9,2.7303]
[1746370118313,10.23423768,1831.0,1830.9,2.7303]
[1746370119112,9.14199768,1831.0,1830.9,2.7303]
[1746370119313,7.42219768,1831.0,1830.9,2.7303]
[1746370120214,3.47066,1831.2,1831.0,1.0922]
[1746370120513,3.47066,1831.2,1831.0,2.7623]
[1746370120816,7.42219768,1831.1,1831.0,2.7623]
[1746370121110,8.51437768,1831.1,1831.0,1.0922]
[1746370121513,7.42219768,1831.1,1831.0,1.0922]
[1746370122408,8.51437768,1831.1,1831.0,1.0922]
[1746370122613,7.42219768,1831.1,1831.0,1.0922]
[1746370123114,8.51437768,1831.1,1831.0,1.0922]
[1746370124218,7.42219768,1831.1,1831.0,1.0922]
[1746370126017,8.51437768,1831.1,1831.0,1.0922]
[1746370126922,1.09224,1831.0,1830.9,7.78206]
[1746370127219,1.09224,1831.0,1830.9,4.57426]
[1746370127609,2.72433,1831.1,1831.0,1.09224]
[1746370127919,10.14652768,1831.1,1831.0,1.09224]
[1746370128113,13.83452768,1831.1,1831.0,1.09224]
[1746370128914,12.74229768,1831.1,1830.9,3.482]
[1746370129109,1.0923,1830.9,1830.8,1.6509]
[1746370129315,8.51453768,1830.9,1830.8,1.09236]
[1746370129512,10.99153768,1830.9,1830.8,1.09236]
[1746370129714,9.03519768,1830.9,1830.8,1.09236]
[1746370129917,5.64422,1831.1,1830.9,1.09225]
[1746370130123,7.42219768,1830.9,1830.8,1.94406]
[1746370130309,7.42219768,1831.0,1830.9,1.09224]
[1746370130513,2.70522,1831.1,1831.0,1.09224]
[1746370130919,1.09224,1831.0,1830.9,1.09226]
[1746370131219,8.51443768,1831.0,1830.9,1.09226]
[1746370132123,12.20243768,1831.0,1830.9,1.09226]
[1746370132321,11.11019768,1831.0,1830.9,1.09226]
[1746370132526,3.688,1831.0,1830.9,1.09226]
[1746370132828,4.78024,1831.0,1830.9,1.09226]
[1746370133030,1.0923,1830.9,1830.8,1.94402]
[1746370133326,1.0923,1830.9,1830.8,3.60122]
[1746370133527,1.6987,1830.9,1830.8,3.60122]
[1746370134831,2.791,1830.9,1830.8,2.74956]
[1746370135126,4.4749,1830.9,1830.8,2.74956]
[1746370135426,3.3826,1830.9,1830.8,2.74956]
[1746370138335,4.4749,1830.9,1830.8,2.74956]
[1746370139434,10.80479768,1830.9,1830.8,2.74956]
[1746370141335,7.42219768,1830.9,1830.8,2.74956]
[1746370141536,2.67802,1831.1,1830.8,4.865]
[1746370141837,2.67802,1831.1,1831.0,1.09224]
[1746370142031,10.10021768,1831.1,1831.0,1.09224]
[1746370142236,13.78821768,1831.1,1831.0,2.76814]
[1746370144441,13.78821768,1831.1,1831.0,1.6759]
[1746370144644,1.09242,1830.7,1830.6,6.6888]
[1746370144939,8.51461768,1830.7,1830.6,6.6888]
[1746370145140,12.20261768,1830.7,1830.6,6.6888]
[1746370145843,13.93941768,1830.7,1830.6,6.6888]
[1746370146444,3.688,1830.7,1830.6,7.78128]
[1746370147142,1.09241,1830.8,1830.6,7.78128]
[1746370147348,1.09241,1830.8,1830.7,2.4292]
[1746370148039,4.78041,1830.8,1830.7,2.4292]
[1746370148239,12.20260768,1830.8,1830.7,2.4292]
[1746370148839,11.11019768,1830.8,1830.7,2.4292]
[1746370149042,11.11019768,1830.8,1830.7,3.52162]
[1746370149244,7.42219768,1830.8,1830.7,3.52162]
[1746370149741,10.71915783,1831.0,1830.8,1.09232]
[1746370150044,4.73315783,1831.0,1830.9,1.6026]
[1746370150344,8.42115783,1831.0,1830.9,1.6026]
[1746370150542,15.84335551,1831.0,1830.9,2.6949]
[1746370150749,14.75108551,1831.0,1830.9,2.6949]
[1746370150941,15.84332551,1831.0,1830.9,2.6949]
[1746370152145,14.75108551,1831.0,1830.9,2.6949]
[1746370152644,11.11019768,1831.0,1830.9,2.6949]
[1746370153143,7.42219768,1831.0,1830.9,2.6949]
[1746370154245,8.51443768,1831.0,1830.9,2.6949]
[1746370155039,7.42219768,1831.0,1830.9,2.6949]
[1746370155249,11.11019768,1831.0,1830.9,2.6949]
[1746370156739,3.688,1831.0,1830.9,6.1759]
[1746370157240,2.66444,1831.2,1831.1,1.09218]
[1746370157440,6.30532783,1831.2,1831.1,1.09218]
[1746370157640,13.72752551,1831.2,1831.1,1.09218]
[1746370157841,13.72752551,1831.2,1831.1,3.60528]
[1746370158147,17.41552551,1831.2,1831.1,3.60528]
[1746370158548,17.41552551,1831.2,1831.1,2.5131]
[1746370160347,9.99332783,1831.2,1831.1,2.5131]
[1746370160655,17.41552551,1831.2,1831.1,2.5131]
[1746370160951,13.77463768,1831.2,1831.1,1.7171]
[1746370161140,13.77463768,1831.2,1831.0,1.892]
[1746370161342,7.42219768,1831.1,1831.0,3.4929]
[1746370163555,8.51437768,1831.1,1831.0,3.4929]
[1746370163756,10.17007768,1831.1,1831.0,2.4007]
[1746370164944,10.17007768,1831.1,1831.0,3.49294]
[1746370165753,10.17007768,1831.1,1831.0,2.4007]
[1746370165953,1.09224,1831.0,1830.9,5.4329]
[1746370166152,15.52553768,1831.0,1830.9,5.4329]
[1746370166357,8.10334,1831.0,1830.9,5.4329]
[1746370166656,8.10334,1831.0,1830.9,7.0848]
[1746370168057,15.52553768,1831.0,1830.9,7.0848]
[1746370171663,15.52553768,1831.0,1830.9,5.9925]
[1746370171961,1.09239,1830.8,1830.6,14.09170037]
[1746370172161,7.42219768,1830.7,1830.6,15.18418037]
[1746370172362,7.42219768,1830.7,1830.6,16.75488037]
[1746370172762,7.42219768,1830.7,1830.6,5.87098]
[1746370179863,2.81328,1831.0,1830.8,1.09236]
[1746370180062,2.787,1830.9,1830.8,1.09236]
[1746370180362,10.20919768,1830.9,1830.8,1.09236]
[1746370180766,9.11689768,1830.9,1830.8,1.09236]
[1746370181560,7.42219768,1830.9,1830.8,4.30016]
[1746370181767,4.78029,1831.0,1830.9,1.0923]
[1746370181968,12.20248768,1831.0,1830.9,2.7482]
[1746370182166,8.51448768,1831.0,1830.9,2.7482]
[1746370182665,1.0923,1830.9,1830.8,0.8023]
[1746370182867,8.51449768,1830.9,1830.8,0.8023]
[1746370183068,10.16809768,1830.9,1830.8,2.4582]
[1746370183265,13.85609768,1830.9,1830.8,2.4582]
[1746370183767,13.85609768,1830.9,1830.8,3.55056]
[1746370183970,13.85609768,1830.9,1830.8,2.4582]
[1746370184362,13.85609768,1830.9,1830.8,3.55056]
[1746370186872,13.85609768,1830.9,1830.8,2.4582]
[1746370187776,12.76379768,1830.9,1830.6,3.2078]
[1746370188070,8.51461768,1830.7,1830.6,3.2078]
[1746370188468,10.24101768,1830.7,1830.5,7.8078]
[1746370188670,7.42219768,1830.6,1830.5,7.8078]
[1746370189368,9.14859768,1830.6,1830.5,7.8078]
[1746370191370,10.24107768,1830.6,1830.5,5.918]
[1746370192277,13.92907768,1830.6,1830.5,5.918]
[1746370194781,13.92907768,1830.6,1830.5,7.01054]
[1746370195273,13.92907768,1830.6,1830.5,5.918]
[1746370195482,11.11019768,1830.6,1830.5,7.01054]
[1746370195779,12.20267768,1830.6,1830.5,7.01054]
[1746370196378,7.42219768,1830.6,1830.5,7.01054]
[1746370197080,8.51467768,1830.6,1830.5,7.01054]
[1746370200387,8.51467768,1830.6,1830.5,5.918]
[1746370202285,12.20267768,1830.6,1830.5,5.918]
[1746370205586,12.20267768,1830.6,1830.5,7.01054]
[1746370208593,11.11019768,1830.6,1830.5,7.01054]
[1746370209093,3.688,1830.6,1830.5,7.01054]
[1746370209393,5.35108783,1830.9,1830.7,1.09242]
[1746370209594,11.06308551,1830.9,1830.8,2.73806]
[1746370210796,12.15538551,1830.9,1830.8,2.73806]
[1746370211099,3.64088783,1830.9,1830.8,2.73806]
[1746370212495,1.09228,1831.0,1830.8,2.73806]
[1746370212696,1.09228,1831.0,1830.9,1.6896]
[1746370212896,1.09228,1831.0,1830.9,3.611]
[1746370213402,1.09228,1831.0,1830.9,2.5187]
[1746370213706,1.09228,1831.0,1830.9,3.611]
[1746370214401,1.09228,1831.0,1830.9,2.5187]
[1746370214804,1.09228,1831.0,1830.9,3.611]
[1746370216704,2.81521,1831.1,1831.0,1.09224]
[1746370217004,4.29996,1831.2,1831.1,1.09218]
[1746370217302,7.42219768,1831.1,1831.0,2.785]
[1746370218397,8.51437768,1831.1,1831.0,2.785]
[1746370219604,7.42219768,1831.1,1831.0,2.785]
[1746370220098,8.51437768,1831.1,1831.0,2.785]
[1746370220304,8.51437768,1831.1,1831.0,2.78504]
[1746370223199,8.51437768,1831.1,1831.0,1.6928]
[1746370223605,10.99727768,1831.1,1831.0,1.6928]
[1746370225399,10.99727768,1831.1,1831.0,2.78504]
[1746370227805,10.99727768,1831.1,1831.0,1.6928]
[1746370228606,1.09224,1831.0,1830.9,0.8291]
[1746370228904,10.09363768,1831.0,1830.9,0.8291]
[1746370229103,2.67144,1831.0,1830.9,2.4315]
[1746370229711,10.09363768,1831.0,1830.9,2.4315]
[1746370229901,1.0923,1830.9,1830.8,4.57235]
[1746370230101,10.19559768,1830.9,1830.8,3.48]
[1746370230301,1.09236,1830.8,1830.7,3.2078]
[1746370230607,11.85105768,1830.8,1830.7,3.2078]
[1746370230906,11.85105768,1830.8,1830.6,4.30744]
[1746370231107,9.10329768,1830.7,1830.6,4.30744]
[1746370232804,10.19571768,1830.7,1830.6,2.4042]
[1746370233006,9.10329768,1830.7,1830.5,4.57152]
[1746370233205,9.11089768,1830.6,1830.5,4.57152]
[1746370233510,9.11089768,1830.6,1830.5,6.27872]
[1746370234008,10.20337768,1830.6,1830.5,6.27872]
[1746370234208,13.89137768,1830.6,1830.5,6.27872]
[1746370234803,12.79889768,1830.6,1830.5,6.27872]
[1746370237009,11.11019768,1830.6,1830.5,6.27872]
[1746370237308,7.42219768,1830.6,1830.5,6.27872]
[1746370238707,7.42219768,1830.6,1830.5,5.1862]
[1746370239213,8.51467768,1830.6,1830.5,5.1862]
[1746370239402,10.24527768,1830.6,1830.5,5.1862]
[1746370242112,13.93327768,1830.6,1830.5,5.1862]
[1746370242305,13.93327768,1830.6,1830.5,3.479]
[1746370244310,10.24527768,1830.6,1830.5,3.479]
[1746370247215,13.93327768,1830.6,1830.5,3.479]
[1746370248112,13.93327768,1830.6,1830.5,5.1877]
[1746370249306,10.24527768,1830.6,1830.5,5.1877]
[1746370250114,13.93327768,1830.6,1830.5,5.1877]